[Event "Gibraltar Challengers A 2020"]
[Site "Caleta"]
[Date "2020.01.24"]
[Round "5.31"]
[White "Aura, Kristian"]
[Black "Campuzano, Franco"]
[Result "1-0"]
[ECO "E93"]
[WhiteElo "1928"]
[BlackElo "1785"]
[Annotator "NA RC"]
[PlyCount "185"]
[EventDate "2020.01.20"]
[EventType "swiss"]
[EventCountry "GGB"]
[SourceTitle "playchess.com"]
[Source "ChessBase"]
[SourceQuality "1"]
[TimeControl "6600+10"]

1. d4 {[%emt 0:00:00]} Nf6 {[%emt 0:05:43]} 2. Nf3 {[%emt 0:00:00]} g6 {[%emt 0:00:26]} 3. c4 {[%emt 0:00:07]} Bg7 {[%emt 0:00:05]} 4. Nc3 {[%emt 0:00:04]} O-O {[%emt 0:00:09]} 5. e4 {[%emt 0:00:08]} d6 {[%emt 0:00:12]} 6. Be2 {[%emt 0:00:05]} e5 {[%emt 0:01:05]} 7. d5 {[%emt 0:00:06]} Nbd7 {[%emt 0:00:24]} 8. Bg5 {[%emt 0:00:25]} h6 {[%emt 0:02:00]} 9. Bh4 {[%emt 0:00:11]} g5 {[%emt 0:02:52]} 10. Bg3 {[%emt 0:00:05]} Nxe4 {[%emt 0:00:49] E93: King's Indian: Classical: Petrosian System with 7...Nbd7} (10... Nh5 11. Nd2 Nf4 12. Bf1 Nc5 13. Nb3 f5 14. Nxc5 dxc5 15. Qc2 a6 16. O-O-O b5 17. f3 b4 18. Na4 fxe4 19. fxe4 {½-½ (31) Andreikin,D (2720)-Fedoseev,V (2659) Berlin 2015}) 11. Nxe4 {[%emt 0:00:13]} f5 {[%emt 0:00:02]} 12. Nc3 {[%emt 0:02:39]} f4 {[%emt 0:02:21]} 13. Nd2 {[%emt 0:00:15]} fxg3 $146 {[%emt 0:00:33]} ({Predecessor:} 13... Nf6 14. Nde4 Bf5 15. Bd3 Qe7 16. Qc2 fxg3 17. Nxf6+ Qxf6 18. Bxf5 gxf2+ 19. Qxf2 Qxf5 20. Qxf5 Rxf5 {½-½ (36) Kerber,W-Skalmowski,B Bad Laasphe 1994}) 14. hxg3 {[%emt 0:00:13]} c6 {[%emt 0:01:06]} 15. O-O {[%emt 0:18:02]} a5 {[%emt 0:04:37]} ({Better is} 15... Nf6 $14) 16. dxc6 {[%emt 0:05:29]} bxc6 {[%emt 0:00:12]} 17. Nde4 {[%emt 0:00:51]} Nf6 {[%emt 0:14:37]} 18. Nxd6 {[%emt 0:10:05]} Qc7 {[%emt 0:05:54]} 19. Nde4 {[%emt 0:11:57]} Rd8 {[%emt 0:03:41]} 20. Qc2 {[%emt 0:02:08]} Be6 {[%emt 0:00:29]} 21. Rad1 {[%emt 0:03:05]} Rd4 {[%emt 0:02:10]} 22. b3 {[%emt 0:00:57]} Rad8 {[%emt 0:01:21]} 23. Bd3 {[%emt 0:03:06]} Qe7 {[%emt 0:10:19]} 24. Ne2 {[%emt 0:05:56]} R4d7 {[%emt 0:03:24]} 25. Nxf6+ {[%emt 0:05:05]} Bxf6 {[%emt 0:02:41]} 26. Be4 {[%emt 0:00:18]} Rd6 {[%emt 0:07:42]} 27. Nc3 {[%emt 0:03:18]} Bg7 {[%emt 0:04:33]} 28. Rxd6 {[%emt 0:00:25]} Rxd6 {[%emt 0:01:05]} 29. Rd1 {[%emt 0:00:21]} Qd7 {[%emt 0:00:43]} 30. Rxd6 {[%emt 0:00:23]} Qxd6 {[%emt 0:00:07]} 31. Qd3 {[%emt 0:02:50]} (31. Nd1 $18 {is more deadly.}) 31... Qd4 {[%emt 0:03:25]} 32. Bh7+ {[%emt 0:09:05]} Kh8 {[%emt 0:02:20]} 33. Bg6 {[%emt 0:03:28]} (33. Qc2 $142) 33... Qxd3 {[%emt 0:06:31]} 34. Bxd3 {[%emt 0:00:06]} Bf8 {[%emt 0:00:51]} 35. Kf1 {[%emt 0:02:18]} Bb4 {[%emt 0:00:36]} 36. Nd1 {[%emt 0:00:43]} Kg7 {[%emt 0:00:30]} 37. Ke2 {[%emt 0:04:18]} Kf6 {[%emt 0:00:16]} 38. Ne3 {[%emt 0:01:49]} Bd7 {[%emt 0:01:43]} 39. g4 {[%emt 0:00:40]} Bc5 {[%emt 0:01:04]} 40. f3 {[%emt 0:02:23]} Bxe3 {[%emt 0:02:26]} 41. Kxe3 {[%emt 0:00:02]} c5 {[%emt 0:00:38]} 42. Be4 {[%emt 0:01:32]} Ke7 {[%emt 0:01:06]} 43. Bd5 {[%emt 0:00:25]} Kd6 {[%emt 0:00:48]} 44. Ke4 {[%emt 0:00:32]} Bc8 {[%emt 0:00:33]} 45. Bf7 {[%emt 0:00:42]} Bd7 {[%emt 0:00:30]} 46. Bg6 {[%emt 0:03:04]} Bc8 {[%emt 0:00:18]} 47. Be8 {[%emt 0:00:09]} Be6 {[%emt 0:00:53]} 48. Kd3 {[%emt 0:00:14]} Bc8 {[%emt 0:00:48]} 49. Bg6 {[%emt 0:00:51]} Bd7 {[%emt 0:00:26]} 50. a3 {[%emt 0:00:36]} Bc8 {[%emt 0:00:38]} 51. Kc3 {[%emt 0:00:05]} Bd7 {[%emt 0:02:09]} 52. b4 {[%emt 0:00:11]} axb4+ {[%emt 0:03:08]} 53. axb4 {[%emt 0:00:01]} Bc8 {[%emt 0:03:33]} 54. Be4 {[%emt 0:00:30]} Bd7 {[%emt 0:00:39]} 55. b5 {[%emt 0:00:44]} Kc7 {[%emt 0:00:10]} 56. Bd5 {[%emt 0:00:30]} Kd6 {[%emt 0:00:55]} 57. Ba8 {[%emt 0:02:13]} Be8 {[%emt 0:00:39]} 58. Kd3 {[%emt 0:00:30]} Bd7 $2 {[%emt 0:00:04]} (58... Bf7 59. b6 Kd7) 59. Be4 {[%emt 0:01:10]} Be6 {[%emt 0:00:18] [#]} 60. Bg6 $2 {[%emt 0:01:48]} (60. Bd5 $1 {[%mdl 512]}) 60... Bc8 $2 {[%emt 0:00:14]} (60... Bg8 $16 61. Be4 Kc7) 61. Bf7 {[%emt 0:00:12]} Bd7 {[%emt 0:00:11]} 62. Ke4 {[%emt 0:00:07]} Bc8 {[%emt 0:00:01]} 63. Bd5 {[%emt 0:00:13]} Bd7 {[%emt 0:00:02]} 64. b6 {[%emt 0:00:04]} Ba4 {[%emt 0:00:08]} 65. b7 {[%emt 0:00:06]} Bc2+ {[%emt 0:00:02]} 66. Ke3 {[%emt 0:00:03]} Kc7 {[%emt 0:00:02]} 67. Kd2 {[%emt 0:00:13]} Bb1 {[%emt 0:00:03]} 68. Kc1 {[%emt 0:00:18]} Bd3 {[%emt 0:00:04]} 69. Kb2 {[%emt 0:00:02]} Bf1 $2 {[%emt 0:00:24]} (69... Bg6 $16) 70. g3 {[%emt 0:00:21]} Be2 {[%emt 0:00:02]} 71. Ka3 {[%emt 0:00:02]} e4 {[%emt 0:00:03]} 72. fxe4 {[%emt 0:00:20]} Bxg4 {[%emt 0:00:01]} 73. e5 {[%emt 0:00:10]} Bd7 {[%emt 0:00:01]} 74. e6 {[%emt 0:00:09]} Be8 {[%emt 0:00:00]} 75. Bf3 {[%emt 0:00:32]} h5 {[%emt 0:00:04]} 76. Bg2 {[%emt 0:00:02]} h4 {[%emt 0:00:02]} 77. gxh4 {[%emt 0:00:01]} gxh4 {[%emt 0:00:01]} 78. Bd5 {[%emt 0:00:15]} h3 {[%emt 0:00:02]} 79. Kb2 {[%emt 0:00:02]} h2 {[%emt 0:00:01]} 80. e7 {[%emt 0:00:10]} Bf7 {[%emt 0:00:33]} (80... Kb8 $18 81. Kc2 Bg6+ 82. Kd2 Be8) 81. Bh1 {[%emt 0:00:06]} Be8 {[%emt 0:00:13]} 82. Kc3 {[%emt 0:00:02]} Bf7 {[%emt 0:00:00]} 83. Kd2 {[%emt 0:00:01]} Be8 {[%emt 0:00:08]} 84. Ke3 {[%emt 0:00:01]} Bf7 {[%emt 0:00:19]} 85. Kf4 {[%emt 0:00:06]} Be8 {[%emt 0:00:11]} 86. Ke5 {[%emt 0:00:17]} Bf7 {[%emt 0:00:15]} 87. Kf6 {[%emt 0:00:12]} Be8 {[%emt 0:00:03]} 88. Kg7 {[%emt 0:00:16]} Bh5 {[%emt 0:00:20]} 89. Kf8 {[%emt 0:00:16]} Bg6 {[%emt 0:00:01]} 90. e8=Q {[%emt 0:00:15] Promotion} Bxe8 {[%emt 0:00:05]} 91. Kxe8 {[%emt 0:00:02]} Kb8 {[%emt 0:00:08]} 92. Kd7 {[%emt 0:00:19]} Ka7 {[%emt 0:00:01]} 93. Kc7 {[%emt 0:00:08]} 1-0

[Event "Gibraltar Challengers A 2020"]
[Site "Caleta"]
[Date "2020.01.24"]
[Round "5.32"]
[White "Fischer, Robert"]
[Black "Auvinen, Esa"]
[Result "1-0"]
[ECO "A18"]
[WhiteElo "1923"]
[BlackElo "1850"]
[Annotator "NA RC"]
[PlyCount "79"]
[EventDate "2020.01.20"]
[EventType "swiss"]
[EventCountry "GGB"]
[SourceTitle "playchess.com"]
[Source "ChessBase"]
[SourceQuality "1"]
[TimeControl "6600+10"]

1. c4 {[%emt 0:00:00]} Nf6 {[%emt 0:00:00]} 2. Nc3 {[%emt 0:00:08]} e6 {[%emt 0:00:23]} 3. e4 {[%emt 0:00:11]} d5 {[%emt 0:00:24]} 4. cxd5 {[%emt 0:00:26]} exd5 {[%emt 0:00:09]} 5. e5 {[%emt 0:00:15]} d4 {[%emt 0:01:17]} 6. exf6 {[%emt 0:00:31]} dxc3 {[%emt 0:00:08]} 7. Bb5+ {[%emt 0:00:20]} c6 {[%emt 0:01:02]} 8. Qe2+ {[%emt 0:00:29]} Be6 {[%emt 0:00:22]} 9. Bc4 {[%emt 0:00:42]} Qxf6 {[%emt 0:03:49]} 10. dxc3 {[%emt 0:00:27] A18: English Opening: Flohr-Mikenas System (1 c4 Nf6 2 Nc3 e6 3 e4)} Be7 {[%emt 0:01:43]} (10... Nd7 11. Bxe6 Qxe6 12. Qxe6+ fxe6 13. Nf3 O-O-O 14. Bg5 Re8 15. Ke2 h6 16. Be3 e5 17. Nd2 Bc5 {½-½ (55) Petrov,N (2585)-Samsonkin,A (2428) Moscow 2019}) 11. Bxe6 {[%emt 0:00:49]} Qxe6 {[%emt 0:00:09]} 12. Qxe6 {[%emt 0:00:07]} fxe6 {[%emt 0:00:07]} 13. Nf3 {[%emt 0:00:59]} Bf6 {[%emt 0:03:43]} 14. Ng5 $146 {[%emt 0:05:35]} ({Predecessor:} 14. Bf4 Na6 15. O-O-O Rd8 16. Rhe1 Rxd1+ 17. Rxd1 O-O {1-0 (36) Doostkam,P (2241)-Nikzaban,E (2081) Urmia 2008}) 14... Bxg5 {[%emt 0:02:16]} 15. Bxg5 {[%emt 0:00:05]} Nd7 {[%emt 0:01:11]} 16. O-O-O {[%emt 0:01:35]} Nf6 {[%emt 0:03:32]} 17. Rhe1 {[%emt 0:02:07]} Ke7 $1 {[%emt 0:03:59]} 18. Re3 {[%emt 0:06:27]} Rhe8 {[%emt 0:01:02]} 19. Rh3 {[%emt 0:03:52]} h6 {[%emt 0:01:59]} 20. Bxf6+ {[%emt 0:00:51]} Kxf6 {[%emt 0:00:10]} 21. Rd7 {[%emt 0:00:15]} e5 {[%emt 0:10:01]} 22. Rf3+ {[%emt 0:04:08]} Ke6 {[%emt 0:00:48]} 23. Rxg7 {[%emt 0:09:17]} e4 {[%emt 0:06:50]} 24. Re3 {[%emt 0:02:27]} Kd5 {[%emt 0:01:35]} 25. Rxb7 {[%emt 0:02:24]} Rg8 {[%emt 0:03:15]} 26. g3 {[%emt 0:01:45]} Rgf8 {[%emt 0:00:33]} 27. Re2 {[%emt 0:01:00]} Rf3 {[%emt 0:02:22]} 28. Rd2+ {[%emt 0:01:36]} Ke6 {[%emt 0:03:59]} 29. Rc7 {[%emt 0:02:22]} Raf8 {[%emt 0:01:17]} 30. Rxc6+ {[%emt 0:00:47]} Ke5 {[%emt 0:00:21]} 31. Rc5+ {[%emt 0:01:04]} Ke6 {[%emt 0:00:51]} 32. Rc4 {[%emt 0:01:23]} Ke5 {[%emt 0:02:59]} 33. Re2 {[%emt 0:04:59]} Rxf2 {[%emt 0:00:11]} 34. Rcxe4+ {[%emt 0:00:13]} Kd5 {[%emt 0:00:31]} 35. Re5+ {[%emt 0:00:45]} Kd6 {[%emt 0:02:04]} 36. Re6+ {[%emt 0:01:02] Double Attack} Kd5 {[%emt 0:04:01]} 37. R2e5+ {[%emt 0:02:03]} Kc4 {[%emt 0:00:20]} 38. Rc6+ {[%emt 0:00:13]} Kd3 {[%emt 0:00:22]} 39. Rd6+ {[%emt 0:00:11]} Kc4 {[%emt 0:00:43]} 40. Rd4# {[%emt 0:00:04] Kd5} 1-0

[Event "Gibraltar Challengers A 2020"]
[Site "Caleta"]
[Date "2020.01.24"]
[Round "5.33"]
[White "Nergard, Ole-Kristian"]
[Black "Kunnavakkam, Sudarshanagopal Vin"]
[Result "0-1"]
[ECO "B40"]
[WhiteElo "1667"]
[BlackElo "1786"]
[Annotator "NA RC"]
[PlyCount "82"]
[EventDate "2020.01.20"]
[EventType "swiss"]
[EventCountry "GGB"]
[SourceTitle "playchess.com"]
[Source "ChessBase"]
[SourceQuality "1"]
[TimeControl "6600+10"]

1. e4 {[%emt 0:52:22]} c5 {[%emt 0:01:08]} 2. Nf3 {[%emt 0:00:10]} e6 {[%emt 0:00:04]} 3. c3 {[%emt 0:01:54]} Nf6 {[%emt 0:00:05]} 4. Bd3 {[%emt 0:00:08]} Nc6 {[%emt 0:00:27]} 5. O-O {[%emt 0:00:35]} d6 {[%emt 0:01:16]} 6. Bc2 {[%emt 0:00:29]} Be7 {[%emt 0:01:06]} 7. d4 {[%emt 0:00:22]} cxd4 {[%emt 0:03:38]} 8. cxd4 {[%emt 0:00:07]} O-O {[%emt 0:00:05]} 9. Nc3 {[%emt 0:00:45]} d5 {[%emt 0:01:04]} 10. e5 {[%emt 0:00:18]} Nd7 {[%emt 0:00:05]} 11. Re1 {[%emt 0:04:07]} f6 {[%emt 0:00:46]} 12. exf6 {[%emt 0:00:52]} Nxf6 {[%emt 0:00:05]} 13. Ng5 {[%emt 0:01:58]} Qb6 {[%emt 0:04:13]} 14. Nxe6 {[%emt 0:07:26]} Bxe6 {[%emt 0:00:28]} 15. Rxe6 {[%emt 0:00:04]} Qxd4 {[%emt 0:00:53]} 16. Be3 {[%emt 0:21:13]} Qxd1+ {[%emt 0:03:07]} 17. Rxd1 {[%emt 0:00:03]} Rad8 {[%emt 0:02:07]} 18. Bb3 {[%emt 0:03:04]} Kf7 {[%emt 0:06:19]} 19. Nxd5 {[%emt 0:20:09]} Kxe6 {[%emt 0:01:12]} 20. Nc7+ {[%emt 0:00:48]} Kf5 {[%emt 0:01:38]} 21. Bc2+ {[%emt 0:01:03]} Kg4 {[%emt 0:00:19]} 22. h3+ {[%emt 0:03:16]} Kh5 {[%emt 0:00:53]} 23. g4+ {[%emt 0:00:18]} Kh4 {[%emt 0:01:13]} 24. Kg2 {[%emt 0:01:37]} Rxd1 {[%emt 0:06:57]} 25. Bxd1 {[%emt 0:00:06]} Ne4 {[%emt 0:05:53]} 26. f3 {[%emt 0:04:31]} Bg5 {[%emt 0:04:47]} 27. Bg1 {[%emt 0:01:18]} Bf4 {[%emt 0:17:21]} 28. Ne6 {[%emt 0:01:00]} Rf6 {[%emt 0:00:38]} 29. Nxf4 {[%emt 0:02:55]} Rxf4 {[%emt 0:00:18]} 30. Bh2 {[%emt 0:00:30]} Rf7 {[%emt 0:00:59]} 31. fxe4 {[%emt 0:02:41]} Rd7 {[%emt 0:00:30]} 32. Bg3+ {[%emt 0:00:31]} Kg5 {[%emt 0:00:08]} 33. h4+ {[%emt 0:01:27]} Kg6 {[%emt 0:01:32]} 34. Bb3 {[%emt 0:00:32]} Rd2+ {[%emt 0:01:14]} 35. Kf3 {[%emt 0:00:05]} Nd4+ {[%emt 0:01:08]} 36. Kf4 {[%emt 0:00:54]} Nxb3 {[%emt 0:00:49]} 37. axb3 {[%emt 0:00:05]} Kf7 {[%emt 0:02:07]} 38. Kf5 {[%emt 0:00:37]} Rxb2 {[%emt 0:00:33]} 39. e5 {[%emt 0:00:22]} Rxb3 {[%emt 0:00:44]} 40. e6+ {[%emt 0:00:28]} Ke7 {[%emt 0:00:22]} 41. Be5 {[%emt 0:00:05]} Rb5 {[%emt 0:00:43]} 0-1

[Event "Gibraltar Challengers A 2020"]
[Site "Caleta"]
[Date "2020.01.24"]
[Round "5.34"]
[White "Tkadlecek, Petr"]
[Black "Brown, David"]
[Result "1/2-1/2"]
[ECO "D02"]
[WhiteElo "1775"]
[BlackElo "1916"]
[Annotator "NA RC"]
[PlyCount "20"]
[EventDate "2020.01.20"]
[EventType "swiss"]
[EventCountry "GGB"]
[SourceTitle "playchess.com"]
[Source "ChessBase"]
[SourceQuality "1"]
[TimeControl "6600+10"]

1. d4 {[%emt 0:00:00]} Nf6 {[%emt 0:00:00]} 2. Nf3 {[%emt 0:00:00]} d5 {[%emt 0:00:23]} 3. Bf4 {[%emt 0:00:06]} c6 {[%emt 0:00:53]} 4. e3 {[%emt 0:00:11]} Bf5 {[%emt 0:00:20]} 5. Be2 {[%emt 0:00:14]} Nbd7 {[%emt 0:00:45]} 6. c3 $11 {[%emt 0:00:11]} h6 {[%emt 0:01:06]} 7. h3 {[%emt 0:00:35]} e6 {[%emt 0:00:10]} 8. O-O {[%emt 0:00:18]} Be7 {[%emt 0:00:52]} 9. Bd3 {[%emt 0:01:12]} Bxd3 {[%emt 0:00:58]} 10. Qxd3 {[%emt 0:00:06]} Bf8 {[%emt 0:06:34]} 1/2-1/2